bitfinex-derivatives/quotes_SOLF0:USTF0_20260121
["timestamp","ask_amount","ask_price","bid_price","bid_amount"]
[1768976876339,3.32796069,128.41,128.33,1.86622856]
[1768976876941,3.32796069,128.41,128.35,7.0194]
[1768976877839,0.0571474,128.39,128.35,7.0194]
[1768976881947,0.0571474,128.39,128.36,7.0188]
[1768976882252,3.32796069,128.41,128.36,7.0188]
[1768976889152,3.32796069,128.43,128.37,7.0183]
[1768976894954,3.32796069,128.43,128.38,7.0177]
[1768976896847,7.2804803,128.45,128.39,109.1544]
[1768976897049,9.72259907,128.46,128.38,109.1654]
[1768976897050,3.21140113,128.46,128.38,109.1654]
[1768976897356,1.86622856,128.5,128.42,109.1309]
[1768976897757,1.86622856,128.52,128.43,109.123]
[1768976897954,1.86622856,128.52,128.45,0.05450512]
[1768976898459,1.86622856,128.5,128.45,0.05450512]
[1768976898954,1.86622856,128.5,128.42,109.1309]
[1768976899157,5.07762969,128.5,128.42,109.1309]
[1768976899549,5.07762969,128.5,128.45,0.0548622]
[1768976899755,3.21140113,128.49,128.45,0.0548622]
[1768976900458,1.86622856,128.52,128.45,8.00444704]
[1768976900858,1.86622856,128.52,128.45,7.94958484]
[1768976901359,1.86622856,128.52,128.47,0.05863101]
[1768976901944,8.87502856,128.55,128.47,8.00711585]
[1768976902356,3.21140113,128.54,128.47,7.94848484]
[1768976902653,3.21140113,128.54,128.5,0.05093591]
[1768976903053,3.21140113,128.5,128.45,8.00032075]
[1768976903358,3.21140113,128.5,128.43,0.98682075]
[1768976904649,3.21140113,128.48,128.43,7.0146]
[1768976904946,3.21140113,128.48,128.41,2.85304931]
[1768976905750,3.21140113,128.48,128.41,9.86874931]
[1768976908460,3.21140113,128.48,128.42,0.98682075]
[1768976910265,3.21140113,128.48,128.44,0.05928368]
[1768976910765,0.05130942,128.46,128.44,0.05928368]
[1768976917065,3.26271055,128.46,128.4,0.98682075]
[1768976918770,3.26271055,128.46,128.41,7.0159]
[1768976919070,3.26271055,128.46,128.41,8.06200443]
[1768976923676,3.26271055,128.46,128.39,8.06280443]
[1768976924766,3.21140113,128.45,128.39,8.06280443]
[1768976924973,5.07762969,128.45,128.39,8.06280443]
[1768976925175,3.4021187,128.44,128.39,8.06280443]
[1768976925570,0.05973492,128.43,128.39,8.06280443]
[1768976929774,0.05973492,128.43,128.39,1.04610443]
[1768976935078,3.2793422,128.43,128.37,8.06270136]
[1768976935485,3.21960728,128.43,128.37,8.06270136]
[1768976935789,0.05300436,128.41,128.38,1.04440136]
[1768976941185,8.87961599,128.44,128.38,1.10260576]
[1768976941395,12.09922327,128.44,128.38,1.10260576]
[1768976943690,10.23320728,128.46,128.39,1.04440136]
[1768976944188,10.23320728,128.46,128.4,1.04440136]
[1768976944388,10.23320728,128.46,128.41,0.0556278]
[1768976947688,10.23320728,128.46,128.41,1.10002916]
[1768976947893,3.21960728,128.48,128.41,1.10002916]
[1768976948292,3.21960728,128.48,128.41,1.04440136]
[1768976948597,3.21960728,128.48,128.43,0.04967844]
[1768976948792,10.23200728,128.48,128.43,0.04967844]
[1768976952297,3.21960728,128.47,128.43,0.04967844]
[1768976955490,0.0558375,128.46,128.43,0.04967844]
[1768976957109,3.23716405,128.46,128.43,0.04967844]
[1768976985632,3.23716405,128.46,128.41,8.06040136]
[1768976989037,7.27079868,128.48,128.42,1.04461027]
[1768976989225,10.53640195,128.52,128.46,0.98877277]
[1768976989428,3.2481115,128.52,128.46,0.98877277]
[1768976991030,0.05047165,128.5,128.48,0.05598156]
[1768976996532,3.29858315,128.5,128.48,0.05598156]
[1768976996729,3.2481115,128.49,128.45,0.98877277]
[1768976997121,3.2481115,128.49,128.44,1.04475433]
[1768976997529,3.2481115,128.49,128.44,8.05915433]
[1768976998029,0.04982762,128.48,128.44,8.05915433]
[1768977002230,0.04982762,128.48,128.44,1.04475433]
[1768977002452,3.29793912,128.48,128.42,8.05985433]
[1768977006348,5.16229212,128.48,128.42,8.05985433]
[1768977007338,5.16229212,128.48,128.44,0.05469614]
[1768977016359,3.38706751,128.47,128.44,0.05469614]
[1768977016760,1.864353,128.46,128.4,8.05990326]
[1768977016961,3.38706751,128.45,128.4,8.05990326]
[1768977018164,0.05006794,128.44,128.4,8.05990326]
[1768977028869,0.05006794,128.44,128.41,0.05272523]
[1768977032889,0.05006794,128.44,128.41,1.15122463]
[1768977033179,3.38706751,128.48,128.42,1.0984994]
[1768977034275,0.05947113,128.46,128.42,1.0984994]
[1768977035983,3.44653864,128.46,128.4,8.1151994]
[1768977036369,3.38706751,128.46,128.4,8.1151994]
[1768977036574,0.05649964,128.44,128.4,8.1151994]
[1768977049889,3.27218398,128.44,128.38,1.09836291]
[1768977050883,3.27218398,128.44,128.38,8.11606291]
[1768977053890,3.27218398,128.44,128.39,1.09836291]
[1768977054994,3.27218398,128.44,128.4,7.0166]
[1768977059486,3.27218398,128.44,128.39,8.11556291]
[1768977071206,3.27218398,128.44,128.4,1.09836291]
[1768977071398,0.05649964,128.44,128.4,1.09836291]
[1768977082114,3.3189563,128.44,128.4,1.09836291]
[1768977082808,3.3189563,128.44,128.38,8.11958069]
[1768977084118,3.3189563,128.44,128.39,8.11878069]
[1768977087724,3.3189563,128.44,128.4,1.10188069]
[1768977090620,3.3189563,128.44,128.38,1.10188069]
[1768977091927,10.27745666,128.43,128.38,1.10188069]
[1768977094322,3.26245666,128.43,128.38,8.11958069]
[1768977095727,3.26245666,128.43,128.38,1.10188069]
[1768977097430,3.26245666,128.43,128.38,8.11948069]
[1768977097830,0.05649964,128.44,128.39,1.10188069]
[1768977098027,0.05649964,128.44,128.39,8.11898069]
[1768977098330,3.26245666,128.45,128.39,8.11898069]
[1768977098531,0.05362851,128.43,128.39,8.11898069]
[1768977115957,3.40119123,128.43,128.37,1.09956624]
[1768977116445,3.34756272,128.43,128.37,1.09956624]
[1768977116645,0.05182373,128.41,128.37,1.09956624]
[1768977117748,0.05182373,128.41,128.37,8.11736624]
[1768977118447,0.05182373,128.41,128.38,7.0176]
[1768977118748,0.05182373,128.41,128.38,7.07079207]
[1768977120251,0.05182373,128.41,128.39,8.11676624]
[1768977120441,3.34756272,128.44,128.39,8.11676624]
[1768977121658,3.34756272,128.44,128.4,0.04939182]
[1768977122470,3.34756272,128.44,128.4,7.06599182]
[1768977123750,0.05986187,128.43,128.4,7.06599182]
[1768977125362,3.34756272,128.46,128.4,1.09713433]
[1768977126852,3.34756272,128.46,128.42,7.0156]
[1768977127460,0.05536672,128.45,128.4,8.06384251]
[1768977127656,0.05536672,128.45,128.43,0.05220322]
[1768977130257,0.05536672,128.45,128.43,7.06720322]
[1768977130559,3.34756272,128.48,128.43,7.06720322]
[1768977131257,3.34756272,128.48,128.43,8.11494573]
[1768977133959,3.34756272,128.48,128.44,7.0143]
[1768977134164,3.34756272,128.5,128.44,8.06204251]
[1768977134662,3.34756272,128.5,128.45,7.0139]
[1768977134869,3.34756272,128.52,128.46,1.10278702]
[1768977135763,3.34756272,128.52,128.46,8.11598702]
[1768977137159,0.05629027,128.5,128.46,8.11598702]
[1768977150979,3.37243004,128.5,128.44,1.04276544]
[1768977151377,3.31613977,128.5,128.44,1.04276544]
[1768977151874,3.31613977,128.5,128.45,7.0139]
[1768977152075,3.31613977,128.5,128.45,8.05666544]
[1768977152276,3.31613977,128.5,128.46,0.05219471]
[1768977152774,3.31613977,128.5,128.43,8.05726544]
[1768977153783,10.32793977,128.49,128.43,8.05726544]
[1768977154081,0.05465025,128.48,128.45,0.04925033]
[1768977158685,3.37079002,128.48,128.43,1.04276544]
[1768977160083,3.37079002,128.48,128.44,0.05372669]
[1768977160284,3.37079002,128.48,128.41,8.05836544]
[1768977160583,3.37079002,128.48,128.41,1.04276544]
[1768977161390,10.32963977,128.46,128.41,1.04276544]
[1768977161687,10.32963977,128.46,128.39,7.0167]
[1768977161688,3.31613977,128.45,128.39,8.05946544]
[1768977161888,3.31613977,128.44,128.39,1.04276544]
[1768977162191,0.0551132,128.43,128.39,1.04276544]
[1768977162687,0.0551132,128.43,128.4,0.05601726]
[1768977167696,0.0551132,128.43,128.4,1.0980877]
[1768977167893,3.22228217,128.48,128.4,1.0980877]
[1768977168493,3.22228217,128.48,128.4,1.04207044]
[1768977168896,10.23458217,128.48,128.41,8.05797044]
[1768977169194,0.0577999,128.45,128.42,1.04207044]
[1768977169396,10.23458217,128.48,128.42,1.04207044]
[1768977169589,10.23458217,128.48,128.43,0.05885356]
[1768977170497,10.23508217,128.47,128.43,0.05885356]
[1768977172995,0.05486809,128.46,128.43,0.05885356]
[1768977176098,3.22228217,128.45,128.39,8.05907044]
[1768977176393,3.22228217,128.45,128.39,1.04207044]
[1768977176998,3.22228217,128.45,128.4,1.04207044]
[1768977177395,3.22228217,128.47,128.41,1.04207044]
[1768977178497,7.0128,128.48,128.41,8.05807044]
[1768977178707,7.28083796,128.55,128.44,3.17000294]
[1768977178896,109.0197,128.56,128.44,3.17000294]
[1768977179584,7.28083796,128.57,128.49,0.05518488]
[1768977179786,7.28083796,128.58,128.49,0.05518488]
[1768977179994,7.28083796,128.58,128.48,3.17000294]
[1768977180599,3.22228217,128.56,128.49,10.18150294]
[1768977180802,3.22228217,128.56,128.5,3.17000294]
[1768977181099,3.22228217,128.56,128.51,0.05504271]
[1768977183602,3.22228217,128.55,128.49,7.0115]
[1768977183798,3.2787916,128.55,128.49,7.0115]
[1768977185096,3.2787916,128.55,128.51,0.05588795]
[1768977196311,0.05650943,128.55,128.51,3.21180828]
[1768977196516,3.21962459,128.57,128.51,3.21180828]
[1768977197513,3.21962459,128.57,128.52,7.01]
[1768977202020,3.21962459,128.59,128.53,10.16542033]
[1768977202209,3.21962459,128.59,128.54,3.15592033]
[1768977202914,3.21962459,128.59,128.55,0.05503203]
[1768977207516,3.21962459,128.58,128.5,3.15592033]
[1768977208922,3.21962459,128.58,128.49,109.0697]
[1768977208923,3.21962459,128.58,128.53,0.05027779]
[1768977212525,10.22642459,128.58,128.53,0.05027779]
[1768977212725,3.21962459,128.57,128.53,0.05027779]
[1768977213229,3.21962459,128.56,128.49,3.15592033]
[1768977214327,3.21962459,128.53,128.47,10.16822033]
[1768977215030,3.21962459,128.52,128.45,10.16932033]
[1768977215620,0.0510175,128.5,128.45,10.16932033]
[1768977215924,0.0510175,128.5,128.46,3.15592033]
[1768977216831,3.21962459,128.52,128.47,3.20667144]
[1768977218230,0.05159369,128.51,128.47,3.20667144]
[1768977226035,10.49053995,128.54,128.48,3.23839424]
[1768977227531,0.05006538,128.52,128.5,0.05966911]
[1768977235740,0.05006538,128.52,128.48,3.23839424]
[1768977236941,0.05006538,128.52,128.49,0.05757794]
[1768977238942,10.54110533,128.52,128.45,7.0139]
[1768977239245,3.48093995,128.51,128.45,7.0139]
[1768977240336,0.05249727,128.49,128.45,7.0139]
[1768977241146,0.05249727,128.49,128.46,1.99831692]
[1768977250250,3.53343722,128.49,128.42,1.99831692]
[1768977250552,0.05249727,128.49,128.42,1.99831692]
[1768977250750,3.48093995,128.5,128.42,1.99831692]
[1768977251049,0.05629992,128.47,128.42,1.99831692]
[1768977251850,0.05629992,128.47,128.42,9.01381692]
[1768977252050,0.05629992,128.47,128.43,1.99831692]
[1768977252647,0.05629992,128.47,128.44,0.05373055]
[1768977261057,7.0124,128.48,128.44,2.05282735]
[1768977263860,109.0582,128.51,128.41,1.9990968]
[1768977263861,10.39858735,128.47,128.41,1.9990968]
[1768977264061,3.38568735,128.47,128.41,1.9990968]
[1768977264261,3.33166453,128.47,128.41,1.9990968]
[1768977264966,7.0123,128.48,128.42,1.9990968]
[1768977265263,0.05634785,128.45,128.42,1.9990968]
[1768977265766,7.0123,128.48,128.42,9.0145968]
[1768977265959,7.0123,128.48,128.42,9.06815457]
[1768977266161,10.34396453,128.48,128.42,9.06815457]
[1768977267068,0.05033823,128.46,128.42,2.05265457]
[1768977267567,0.05033823,128.46,128.42,1.9990968]
[1768977267768,0.05033823,128.46,128.43,0.05814848]
[1768977267965,3.38200276,128.46,128.4,9.0152968]
[1768977268272,3.38200276,128.46,128.41,1.9990968]
[1768977276674,10.34566453,128.45,128.41,1.9990968]
[1768977276866,3.33166453,128.44,128.39,1.9990968]
[1768977277760,0.0580052,128.43,128.39,1.9990968]
[1768977279176,3.38966973,128.43,128.39,1.9990968]
[1768977280870,10.40466973,128.43,128.39,1.9990968]
[1768977287890,7.0158,128.42,128.37,1.99738176]
[1768977288793,0.05907855,128.41,128.38,0.0541381]
[1768977289892,0.05907855,128.41,128.38,2.05151986]
[1768977294993,10.34676453,128.43,128.38,2.05151986]
[1768977298297,0.05405737,128.42,128.38,2.05151986]
[1768977300898,0.05405737,128.42,128.38,0.0541381]
[1768977300899,3.23250184,128.42,128.38,0.0541381]
[1768977302394,3.23250184,128.42,128.34,1.99738176]
[1768977302795,3.17844447,128.42,128.34,1.99738176]
[1768977303899,0.05187397,128.39,128.34,9.01728176]
[1768977304101,0.05187397,128.39,128.35,2.05151986]
[1768977305196,3.23031844,128.39,128.33,2.05151986]
[1768977305703,3.17844447,128.39,128.33,2.05151986]
[1768977306002,0.05915697,128.37,128.33,2.05151986]
[1768977306193,0.05915697,128.37,128.34,9.07141986]
[1768977306392,3.17844447,128.39,128.34,9.07141986]
[1768977306594,3.17844447,128.39,128.34,9.12672093]
[1768977308603,3.17844447,128.41,128.35,2.05151986]
[1768977309098,3.17844447,128.41,128.36,2.05151986]
[1768977309292,3.17844447,128.43,128.36,2.05151986]
[1768977309494,3.17844447,128.43,128.37,2.10916176]
[1768977310896,3.17844447,128.42,128.37,2.10916176]
[1768977313795,3.17844447,128.41,128.37,0.0576419]
[1768977314001,3.23142855,128.41,128.37,0.0576419]
[1768977314397,10.24762855,128.41,128.37,0.0576419]
[1768977314602,10.24762855,128.41,128.33,2.05151986]
[1768977314603,3.17844447,128.4,128.33,2.05151986]
[1768977315108,3.17844447,128.4,128.34,2.05151986]
[1768977315911,0.04935943,128.38,128.36,0.05131147]
[1768977332120,3.21874922,128.38,128.36,0.05131147]
[1768977332314,3.21874922,128.38,128.34,2.05151986]
[1768977333028,0.04935943,128.38,128.34,9.07141986]
[1768977338530,3.21874922,128.38,128.34,7.0199]
[1768977338737,3.21874922,128.38,128.32,9.07209092]
[1768977339120,10.18718979,128.38,128.32,2.05159092]
[1768977339431,0.05495177,128.36,128.32,2.05159092]
[1768977343538,3.16938979,128.39,128.33,2.10909371]
[1768977344829,3.16938979,128.39,128.33,9.12939371]
[1768977360137,3.16938979,128.39,128.34,9.07566863]
[1768977360343,3.34100091,128.41,128.35,2.05576863]
[1768977361039,10.35710091,128.41,128.37,0.05709472]
[1768977365142,3.34100091,128.41,128.37,0.05709472]
[1768977366749,3.34100091,128.41,128.37,7.07539472]
[1768977367453,0.05380841,128.4,128.37,7.07539472]
[1768977369160,0.05380841,128.4,128.37,9.13116335]
[1768977369352,3.34100091,128.43,128.38,9.07336863]
[1768977374555,3.34100091,128.43,128.38,2.05576863]
[1768977379465,3.34100091,128.43,128.38,9.07346863]
[1768977381064,10.46403744,128.45,128.39,9.06332033]
[1768977381248,3.19293477,128.44,128.39,9.06332033]
[1768977381856,3.19293477,128.44,128.4,0.05386489]
[1768977386767,3.19293477,128.44,128.36,7.0183]
[1768977386970,3.19293477,128.44,128.36,9.11858522]
[1768977387270,3.19293477,128.44,128.37,2.10028522]
[1768977387459,3.19293477,128.44,128.37,9.11848522]
[1768977387858,3.19293477,128.44,128.38,2.10028522]
[1768977388372,3.19293477,128.44,128.39,0.05261164]
[1768977390570,3.25132719,128.43,128.39,0.05261164]
[1768977400277,3.25132719,128.43,128.39,2.15289686]
[1768977400483,0.05839242,128.43,128.39,2.15289686]
[1768977403180,3.25132719,128.43,128.39,0.05261164]
[1768977403970,3.25132719,128.43,128.39,2.15289686]
[1768977405787,3.25132719,128.43,128.39,0.05261164]
[1768977406692,3.25132719,128.43,128.33,2.1580534]
[1768977407187,3.19293477,128.43,128.33,2.1580534]
[1768977407881,0.05475325,128.39,128.34,9.1775534]
[1768977409191,0.05475325,128.39,128.35,0.05663278]
[1768977419604,3.44071164,128.42,128.36,2.1580534]
[1768977420997,3.44071164,128.41,128.38,0.05274934]
[1768977421902,3.4959684,128.41,128.36,9.1768534]
[1768977422398,3.4959684,128.41,128.36,2.1580534]
[1768977422790,10.5120684,128.41,128.36,2.1580534]
[1768977423086,3.44071164,128.4,128.36,2.1580534]
[1768977424701,0.05525676,128.41,128.36,9.1768534]
[1768977425402,3.44071164,128.44,128.38,2.1580534]
[1768977425588,10.71265872,128.46,128.38,2.1580534]
[1768977425791,3.44071164,128.46,128.38,2.1580534]
[1768977425996,3.44071164,128.46,128.39,9.1751534]
[1768977426798,3.44071164,128.46,128.41,0.05495099]
[1768977427606,3.49156828,128.45,128.41,0.05495099]
[1768977428705,0.05085664,128.45,128.41,2.21300439]
[1768977429813,0.05085664,128.45,128.41,9.22890439]
[1768977439313,0.05085664,128.45,128.42,2.15341991]
[1768977439817,10.49582329,128.5,128.43,2.15341991]
[1768977440218,3.48422329,128.49,128.43,9.16831991]
[1768977441021,3.48422329,128.49,128.45,0.05768253]
[1768977441813,0.05278713,128.48,128.45,0.05768253]
[1768977446233,3.53701042,128.48,128.41,9.16941991]
[1768977446833,3.48422329,128.48,128.41,9.16941991]
[1768977447429,3.48422329,128.48,128.43,0.05223495]
[1768977447835,10.49662329,128.48,128.43,0.05223495]
[1768977448232,0.05097684,128.47,128.43,0.05223495]
[1768977448734,3.53520013,128.47,128.43,0.05223495]
[1768977448928,10.54810013,128.47,128.43,0.05223495]
[1768977449127,10.54810013,128.47,128.41,7.016]
[1768977449128,3.48422329,128.46,128.41,7.016]
[1768977449632,3.48422329,128.45,128.4,2.21110244]
[1768977451032,0.0513502,128.44,128.4,2.21110244]
[1768977452932,0.0513502,128.44,128.4,9.22760244]
[1768977455338,0.0513502,128.44,128.41,2.21110244]
[1768977456837,3.48422329,128.46,128.41,2.2656513]
[1768977458746,3.48422329,128.45,128.41,0.05454886]
[1768977462648,10.49822329,128.45,128.41,0.05454886]
[1768977467458,3.17814775,128.44,128.38,9.22803667]
[1768977467653,3.22958719,128.44,128.38,9.22803667]
[1768977470352,0.05143944,128.44,128.39,2.21043667]
[1768977471058,0.05143944,128.44,128.4,0.05515238]
[1768977481663,3.22958719,128.44,128.4,0.05515238]
[1768977490378,3.22958719,128.44,128.37,9.22823667]
[1768977490678,3.22958719,128.44,128.38,2.21043667]
[1768977494984,3.22958719,128.44,128.38,9.22813667]
[1768977495680,3.22958719,128.44,128.39,2.20880959]
[1768977495880,3.22958719,128.44,128.39,9.22600959]
[1768977497178,0.05143944,128.44,128.4,2.20880959]
[1768977516701,3.36775128,128.44,128.4,2.20880959]
[1768977519003,3.36775128,128.44,128.39,7.0172]
[1768977519299,3.36775128,128.44,128.39,9.22600959]
[1768977522006,3.36775128,128.44,128.4,0.05950513]
[1768977529814,0.05143944,128.44,128.4,2.27030711]
[1768977533916,3.53397125,128.44,128.4,2.27030711]
[1768977539509,3.48253181,128.43,128.38,2.21080198]
[1768977544322,10.54857125,128.44,128.38,2.21080198]
[1768977549935,10.54857125,128.44,128.38,9.22850198]
[1768977558150,10.54857125,128.44,128.39,2.21038104]
[1768977559541,10.54857125,128.44,128.4,0.05471525]
[1768977559742,3.53397125,128.44,128.4,0.05471525]
[1768977575867,0.05143944,128.44,128.4,2.26509629]
[1768977576058,3.22699024,128.46,128.4,2.26509629]
[1768977576568,3.22699024,128.46,128.41,7.0161]
[1768977577361,0.05830033,128.45,128.41,7.0161]
[1768977598684,0.05830033,128.45,128.41,9.22425795]
[1768977603394,0.05830033,128.45,128.41,2.20815795]
[1768977605394,0.05830033,128.45,128.4,0.05471525]
[1768977605395,3.37630394,128.45,128.4,0.05471525]
[1768977605606,3.37630394,128.45,128.38,7.0173]
[1768977606987,3.31800361,128.43,128.38,7.0173]
[1768977607702,0.05397563,128.42,128.38,7.0173]
[1768977611506,0.05397563,128.42,128.37,2.20815795]
[1768977612805,0.05397563,128.42,128.37,9.22635795]
[1768977613506,0.05397563,128.42,128.38,2.20815795]
[1768977620914,10.6583775,128.47,128.39,2.15725906]
[1768977621908,10.39522663,128.46,128.4,2.15725906]
[1768977622210,0.04979541,128.44,128.4,2.15725906]
[1768977625715,0.04979541,128.44,128.4,9.17355906]
[1768977625916,10.6583775,128.48,128.41,2.10746365]
[1768977626717,3.38182663,128.47,128.41,9.12356365]
[1768977627225,0.05591877,128.45,128.41,9.12356365]
[1768977634828,0.05591877,128.45,128.41,2.10746365]
[1768977635029,3.4377454,128.45,128.39,9.12426365]
[1768977635830,10.4517454,128.45,128.39,9.12426365]
[1768977637837,10.4517454,128.45,128.4,2.10746365]
[1768977639040,3.4377454,128.45,128.4,2.10746365]
[1768977640737,3.4377454,128.45,128.41,0.05537492]
[1768977649049,3.4377454,128.45,128.38,2.10337998]
[1768977649453,3.38182663,128.45,128.38,2.10337998]
[1768977649742,7.0145,128.44,128.38,2.10337998]
[1768977649949,10.36179595,128.44,128.38,2.10337998]
[1768977650450,0.05326419,128.42,128.38,2.10337998]
[1768977651451,3.40056014,128.42,128.36,2.10337998]
[1768977651855,3.34729595,128.42,128.36,2.10337998]
[1768977652248,0.04953127,128.4,128.36,2.10337998]
[1768977652753,0.04953127,128.4,128.36,9.12207998]
[1768977652954,0.04953127,128.4,128.37,2.10337998]
[1768977661659,0.04953127,128.4,128.35,2.10337998]
[1768977661865,0.04953127,128.4,128.37,0.05014654]
[1768977665771,3.39682722,128.4,128.37,0.05014654]
[1768977667069,3.39682722,128.4,128.35,2.10337998]
[1768977670362,10.41352722,128.4,128.35,2.10337998]
[1768977671368,3.34729595,128.39,128.33,296.62337998]
[1768977671664,3.34729595,128.39,128.33,2.10337998]
[1768977672068,3.34729595,128.37,128.32,2.10337998]
[1768977672268,3.39844684,128.37,128.32,2.10337998]
[1768977672469,0.05115089,128.37,128.32,2.10337998]
[1768977673167,0.05115089,128.37,128.32,9.12437998]
[1768977673470,0.05115089,128.37,128.33,2.10337998]
[1768977675872,10.43178046,128.41,128.34,2.10378162]
[1768977677273,0.05388242,128.39,128.34,2.10378162]
[1768977679075,0.05388242,128.39,128.34,9.12368162]
[1768977679374,0.05388242,128.39,128.35,2.05263073]
[1768977685785,0.05388242,128.39,128.35,9.07193073]
[1768977692787,0.05388242,128.39,128.36,2.05263073]
[1768977700889,0.05388242,128.39,128.35,7.0193]
[1768977701095,0.05388242,128.39,128.35,9.07193073]
[1768977706598,0.05388242,128.39,128.36,0.05386034]
[1768977711196,3.37896748,128.39,128.36,0.05386034]
[1768977711389,3.37896748,128.39,128.33,9.07192211]
[1768977712197,3.32508506,128.38,128.31,9.07312211]
[1768977712403,0.05388242,128.39,128.32,2.05202211]
[1768977712602,3.32508506,128.39,128.32,2.05202211]
[1768977713108,0.05205377,128.37,128.32,2.05202211]
[1768977713810,0.05205377,128.37,128.32,9.07282211]
[1768977714004,0.05205377,128.37,128.33,2.05202211]
[1768977721517,0.05205377,128.37,128.33,9.07242211]
[1768977721815,0.05205377,128.37,128.34,2.05202211]
[1768977724224,0.05205377,128.37,128.34,9.07192211]
[1768977724523,3.32508506,128.41,128.35,2.05202211]
[1768977725025,3.32508506,128.39,128.33,2.05202211]
[1768977725618,0.05920421,128.37,128.33,2.05202211]
[1768977733231,3.32508506,128.4,128.33,2.05202211]
[1768977733830,3.32508506,128.4,128.34,9.07162211]
[1768977734432,0.05219735,128.38,128.34,9.07162211]
[1768977735829,0.05219735,128.38,128.35,0.05913517]
[1768977742830,3.23486251,128.38,128.35,0.05913517]
[1768977743028,3.23486251,128.38,128.33,9.07351085]
[1768977750738,10.20166516,128.36,128.31,2.05321085]
[1768977750939,10.46276037,128.36,128.31,2.05321085]
[1768977751439,0.05407809,128.35,128.31,2.05321085]
[1768977753040,3.23674325,128.35,128.31,2.05321085]
[1768977753833,10.25624325,128.35,128.31,2.05321085]
[1768977756542,3.18266516,128.34,128.29,2.05321085]
[1768977761048,3.18266516,128.33,128.27,2.11284306]
[1768977761641,3.18266516,128.33,128.28,2.11284306]
[1768977761845,0.0562889,128.31,128.28,2.11284306]
[1768977762938,3.18266516,128.35,128.29,2.11284306]
[1768977764244,0.05966795,128.33,128.29,2.11284306]
[1768977765943,0.05966795,128.33,128.3,0.05318684]
[1768977767652,0.05966795,128.33,128.3,2.17193181]
[1768977777259,3.18266516,128.35,128.31,2.11874497]
[1768977777559,10.26188191,128.37,128.31,2.11874497]
[1768977778557,0.0598575,128.35,128.31,2.11874497]
[1768977778757,0.0598575,128.35,128.31,9.14024497]
[1768977780161,7.0178,128.38,128.32,9.13974497]
[1768977780460,7.0178,128.38,128.33,2.11874497]
[1768977780961,10.26108191,128.38,128.33,2.11874497]
[1768977781462,3.24328191,128.38,128.33,2.11874497]
[1768977787271,10.26118191,128.38,128.33,2.11874497]
[1768977787470,3.24328191,128.37,128.33,2.11874497]
[1768977791677,0.0544375,128.36,128.33,2.11874497]
[1768977795479,3.24204429,128.36,128.32,0.04996262]
[1768977800384,0.0544375,128.36,128.32,2.16376085]
[1768977801682,0.0544375,128.36,128.32,9.18476085]
[1768977802781,0.0544375,128.36,128.33,2.11379823]
[1768977804980,10.20520679,128.39,128.34,2.11379823]
[1768977806179,10.20520679,128.39,128.35,0.05606268]
[1768977808288,10.20550679,128.38,128.32,2.11379823]
[1768977809590,10.20550679,128.38,128.34,0.0501312]
[1768977812092,3.18760679,128.37,128.34,0.0501312]
[1768977812389,3.23867316,128.37,128.32,2.11379823]
[1768977812787,10.25707316,128.37,128.32,2.11379823]
[1768977813982,10.20650679,128.36,128.3,2.11379823]
[1768977814791,0.05349185,128.34,128.3,2.11379823]
[1768977815887,0.05349185,128.34,128.3,9.13589823]
[1768977821902,0.05349185,128.34,128.31,2.11379823]
[1768977822704,3.18760679,128.38,128.32,2.11379823]
[1768977823416,3.18760679,128.38,128.32,9.13479823]
[1768977823915,3.18760679,128.38,128.34,0.05421116]
[1768977825715,0.05143353,128.37,128.34,0.05421116]
[1768977831022,7.28257676,128.4,128.34,2.17188243]
[1768977831023,10.51764619,128.4,128.34,2.17188243]
[1768977832219,3.23506943,128.39,128.34,2.17188243]
[1768977836030,3.23506943,128.39,128.34,9.19178243]
[1768977836327,3.23506943,128.39,128.34,0.05421116]
[1768977837829,10.25236943,128.39,128.34,0.05421116]
[1768977838531,3.23506943,128.38,128.34,0.05421116]
[1768977841532,3.23506943,128.38,128.31,2.11767127]
[1768977841728,3.23506943,128.37,128.31,2.11767127]
[1768977841932,3.23506943,128.37,128.29,2.11767127]
[1768977842130,3.23506943,128.36,128.29,2.11767127]
[1768977842938,3.23506943,128.35,128.31,0.0546877]
[1768977844628,0.05185609,128.34,128.31,0.0546877]
[1768977849334,3.28692552,128.34,128.29,2.11767127]
[1768977851540,10.30702552,128.34,128.29,2.11767127]
[1768977852642,3.23506943,128.33,128.27,9.14137127]
[1768977853438,0.05535278,128.31,128.27,9.14137127]
[1768977854736,0.05535278,128.31,128.28,2.11767127]
[1768977855437,0.05535278,128.31,128.28,2.17359669]
[1768977855642,3.23506943,128.33,128.28,2.17359669]
[1768977860047,10.25566943,128.33,128.28,2.17359669]
[1768977862253,10.197972,128.32,128.28,0.05592542]
[1768977862751,10.197972,128.32,128.26,2.11660872]
[1768977864853,7.0216,128.31,128.26,2.11660872]
[1768977867254,10.198372,128.31,128.26,2.11660872]
[1768977871161,10.199072,128.3,128.24,296.81660872]
[1768977871552,0.0592977,128.29,128.24,296.81660872]
[1768977872661,0.0592977,128.29,128.25,0.05708282]
[1768977876153,3.2360697,128.29,128.25,0.05708282]
[1768977878564,10.2588697,128.29,128.25,0.05708282]
[1768977888268,3.2360697,128.29,128.25,0.05708282]